fUSD/lending_fUSD_20240518
["ID","MTS","AMOUNT","RATE_DAILY","PERIOD"]
[327434616,1716072714724,-2447.17,0.00029589,2]
[327434617,1716072714734,-953.63,0.00029589,2]
[327434618,1716072714743,-865.72,0.00029589,2]
[327434619,1716072714753,-682.57,0.00029589,2]
[327434620,1716072714762,-529.16,0.00029589,2]
[327434621,1716072714772,-1750.4,0.00029589,2]
[327434622,1716072714782,-2057.73,0.00029589,2]
[327434623,1716072714792,-2572.88,0.00029589,2]
[327434624,1716072714801,-3119.96,0.00029589,2]
[327434625,1716072714811,-922.14,0.00029589,2]
[327434626,1716072714821,-500.0,0.00029589,2]
[327434627,1716072714830,-2353.86,0.00029589,2]
[327434628,1716072714840,-500.0,0.00029589,2]
[327434629,1716072714849,-531.36,0.00029589,2]
[327434630,1716072714860,-858.26,0.00029589,2]
[327434631,1716072714869,-150.0,0.00029589,2]
[327434632,1716072714879,-500.0,0.00029589,2]
[327434633,1716072714888,-1058.12,0.00029589,2]
[327434634,1716072714898,-638.4,0.00029589,2]
[327434635,1716072714908,-1228.94,0.00029589,2]
[327434636,1716072714918,-872.12,0.00029589,2]
[327434637,1716072714927,-500.0,0.00029589,2]
[327434638,1716072714937,-610.79,0.00029589,2]
[327434639,1716072714946,-650.02,0.00029589,2]
[327434640,1716072714956,-500.0,0.00029589,2]
[327434641,1716072714966,-911.87,0.00029589,2]
[327434642,1716072714975,-722.52,0.00029589,2]
[327434643,1716072714985,-628.71,0.00029589,2]
[327434644,1716072714995,-612.69,0.00029589,2]
[327434645,1716072715006,-9177.76,0.00029589,2]
[327434646,1716072715016,-500.0,0.00029589,2]
[327434647,1716072715026,-627.33546003,0.00029589,2]
[327434648,1716072715036,-500.0,0.00029589,2]
[327434649,1716072715046,-2257.41,0.00029589,2]
[327434650,1716072715055,-602.34,0.00029589,2]
[327434651,1716072715065,-944.42,0.00029589,2]
[327434652,1716072715075,-1506.69,0.00029589,2]
[327434653,1716072715085,-1061.27,0.00029589,2]
[327434654,1716072715095,-3490.29,0.00029589,2]
[327434655,1716072715104,-500.0,0.00029589,2]
[327434656,1716072715115,-500.0,0.00029589,2]
[327434657,1716072715125,-151.0,0.00029589,7]
[327434658,1716072715134,-728.73,0.00029589,2]
[327434659,1716072715144,-500.0,0.00029589,2]
[327434660,1716072715153,-649.73,0.00029589,2]
[327434661,1716072715164,-500.0,0.00029589,2]
[327434662,1716072715174,-1121.22,0.00029589,2]
[327434663,1716072715183,-965.84,0.00029589,2]
[327434664,1716072715194,-962.75,0.00029589,2]
[327434665,1716072715203,-500.0,0.00029589,2]
[327434666,1716072715213,-1517.22,0.00029589,2]
[327434667,1716072715223,-151.0,0.00029589,7]
[327434668,1716072715233,-607.13,0.00029589,2]
[327434669,1716072715243,-777.39,0.00029589,2]
[327434670,1716072715253,-1072.65,0.00029589,2]
[327434671,1716072715263,-1646.21,0.00029589,2]
[327434672,1716072715273,-522.66,0.00029589,2]
[327434673,1716072715283,-500.0,0.00029589,2]
[327434674,1716072715292,-500.0,0.00029589,2]
[327434675,1716072715302,-2342.49,0.00029589,2]
[327434676,1716072715312,-500.0,0.00029589,2]
[327434677,1716072715322,-936.43,0.00029589,2]
[327434678,1716072715332,-677.05,0.00029589,2]
[327434679,1716072715342,-151.0,0.00029589,7]
[327434680,1716072715351,-500.0,0.00029589,2]
[327434681,1716072715361,-7836.42,0.00029589,2]
[327434682,1716072715370,-500.0,0.00029589,2]
[327434683,1716072715380,-1119.09,0.00029589,2]
[327434684,1716072715389,-161.15,0.00029589,2]
[327434685,1716072715399,-500.0,0.00029589,2]
[327434686,1716072715409,-500.0,0.00029589,2]
[327434687,1716072715419,-747.33,0.00029589,2]
[327434688,1716072715433,-899.97,0.00029589,2]
[327434689,1716072715443,-500.0,0.00029589,2]
[327434690,1716072715452,-500.0,0.00029589,2]
[327434691,1716072715463,-500.0,0.00029589,2]
[327434692,1716072715472,-958.2,0.00029589,2]
[327434693,1716072715482,-565.65,0.00029589,2]
[327434694,1716072715493,-814.37,0.00029589,2]
[327434695,1716072715504,-903.76,0.00029589,2]
[327434696,1716072715514,-804.91,0.00029589,2]
[327434697,1716072715524,-500.0,0.00029589,2]
[327434698,1716072715533,-5840.53,0.00029589,2]
[327434699,1716072715543,-546.54,0.00029589,2]
[327434700,1716072715553,-944.57,0.00029589,2]
[327434701,1716072715563,-500.0,0.00029589,2]
[327434702,1716072715573,-567.91,0.00029589,2]
[327434703,1716072715583,-500.0,0.00029589,2]
[327434704,1716072715593,-500.0,0.00029589,2]
[327434705,1716072715605,-500.0,0.00029589,2]
[327434706,1716072715616,-8080.33,0.00029589,2]
[327434707,1716072715627,-514.52,0.00029589,2]
[327434708,1716072715637,-1436.74,0.00029589,2]
[327434709,1716072715647,-966.71,0.00029589,2]
[327434710,1716072715656,-500.0,0.00029589,2]
[327434711,1716072715666,-617.57,0.00029589,2]
[327434712,1716072715676,-859.01,0.00029589,2]
[327434713,1716072715685,-4199.51,0.00029589,2]
[327434714,1716072715694,-598.86,0.00029589,2]
[327434715,1716072715704,-757.33,0.00029589,2]
[327434716,1716072715713,-2709.04,0.00029589,2]
[327434717,1716072715723,-845.88,0.00029589,2]
[327434718,1716072715733,-4393.59,0.00029589,2]
[327434719,1716072715742,-1202.17,0.00029589,2]
[327434720,1716072715752,-500.0,0.00029589,2]
[327434721,1716072715762,-830.64,0.00029589,2]
[327434722,1716072715772,-791.26,0.00029589,2]
[327434723,1716072715781,-500.0,0.00029589,2]
[327434724,1716072715791,-1031.41,0.00029589,2]
[327434725,1716072715800,-914.71,0.00029589,2]
[327434726,1716072715810,-500.0,0.00029589,2]
[327434727,1716072715819,-13454.18,0.00029589,2]
[327434728,1716072715829,-743.99,0.00029589,2]
[327434729,1716072715839,-825.76,0.00029589,2]
[327434730,1716072715849,-917.37,0.00029589,2]
[327434731,1716072715858,-4993.36,0.00029589,2]
[327434732,1716072715868,-1338.01,0.00029589,2]
[327434733,1716072715877,-500.0,0.00029589,2]
[327434734,1716072715887,-394.90415881,0.00029589,2]
[327434735,1716072715896,-500.0,0.00029589,2]
[327434736,1716072715906,-2348.84,0.00029589,2]
[327434737,1716072715915,-620.39,0.00029589,2]
[327434738,1716072715925,-787.6,0.00029589,2]
[327434739,1716072715934,-500.0,0.00029589,2]
[327434740,1716072715945,-2108.67,0.00029589,2]
[327434741,1716072715955,-500.0,0.00029589,2]
[327434742,1716072715965,-500.0,0.00029589,2]
[327434743,1716072715974,-591.28,0.00029589,2]
[327434744,1716072715984,-1781.93,0.00029589,2]
[327434745,1716072715994,-834.18,0.00029589,2]
[327434746,1716072716003,-500.0,0.00029589,2]
[327434747,1716072716012,-500.0,0.00029589,2]
[327434748,1716072716022,-500.0,0.00029589,2]
[327434749,1716072716032,-2211.96,0.00029589,2]
[327434750,1716072716042,-1566.6,0.00029589,2]
[327434751,1716072716051,-198.86,0.00029589,2]
[327434752,1716072716060,-525.01,0.00029589,2]
[327434753,1716072716069,-500.0,0.00029589,2]
[327434754,1716072716079,-775.61,0.00029589,2]
[327434755,1716072716088,-524.04,0.00029589,2]
[327434756,1716072716097,-659.23,0.00029589,2]
[327434757,1716072716106,-500.0,0.00029589,2]
[327434758,1716072716116,-1439.35,0.00029589,2]
[327434759,1716072716126,-4593.95,0.00029589,2]
[327434760,1716072716136,-660.78,0.00029589,2]
[327434761,1716072716145,-1429.16,0.00029589,2]
[327434762,1716072716155,-553.81,0.00029589,2]
[327434763,1716072716164,-4440.74,0.00029589,2]
[327434764,1716072716173,-395.89536247,0.00029589,2]
[327434765,1716072716183,-859.19,0.00029589,2]
[327434766,1716072716192,-500.0,0.00029589,2]
[327434767,1716072716202,-500.0,0.00029589,2]
[327434768,1716072716211,-500.0,0.00029589,2]
[327434769,1716072716221,-500.0,0.00029589,2]
[327434770,1716072716231,-987.39,0.00029589,2]
[327434771,1716072716241,-2255.19,0.00029589,2]
[327434772,1716072716251,-500.0,0.00029589,2]
[327434773,1716072716260,-1264.56,0.00029589,2]
[327434774,1716072716270,-611.43,0.00029589,2]
[327434775,1716072716279,-1385.24,0.00029589,2]
[327434776,1716072716289,-1221.01,0.00029589,2]
[327434777,1716072716298,-2088.5,0.00029589,2]
[327434778,1716072716308,-1484.57,0.00029589,2]
[327434779,1716072716317,-500.0,0.00029589,2]
[327434780,1716072716327,-500.0,0.00029589,2]
[327434781,1716072716336,-500.0,0.00029589,2]
[327434782,1716072716345,-500.0,0.00029589,2]
[327434783,1716072716354,-500.0,0.00029589,2]
[327434784,1716072716364,-500.0,0.00029589,2]
[327434785,1716072716373,-500.0,0.00029589,2]
[327434786,1716072716382,-500.0,0.00029589,2]
[327434787,1716072716392,-500.0,0.00029589,2]
[327434788,1716072716401,-1786.52,0.00029589,2]
[327434789,1716072716410,-7643.34,0.00029589,2]
[327434790,1716072716420,-865.89,0.00029589,2]
[327434791,1716072716433,-5681.26,0.00029589,2]
[327434792,1716072716442,-834.34,0.00029589,2]
[327434793,1716072716451,-569.88,0.00029589,2]
[327434794,1716072716461,-500.0,0.00029589,2]
[327434795,1716072716469,-500.0,0.00029589,2]
[327434796,1716072716479,-500.0,0.00029589,2]
[327434797,1716072716490,-762.15,0.00029589,2]
[327434798,1716072716499,-500.0,0.00029589,2]
[327434799,1716072716508,-555.28,0.00029589,2]
[327434800,1716072716518,-500.0,0.00029589,2]
[327434801,1716072716527,-161.15442172,0.00029589,2]
[327434802,1716072716538,-500.0,0.00029589,2]
[327434803,1716072716548,-500.0,0.00029589,2]
[327434804,1716072716558,-1179.45,0.00029589,2]
[327434805,1716072716568,-500.0,0.00029589,2]
[327434806,1716072716577,-500.0,0.00029589,2]
[327434807,1716072716587,-855.04,0.00029589,2]
[327434808,1716072716596,-500.0,0.00029589,2]
[327434809,1716072716605,-1063.61,0.00029589,2]
[327434810,1716072716616,-500.0,0.00029589,2]
[327434811,1716072716626,-654.27,0.00029589,2]
[327434812,1716072716635,-734.04,0.00029589,2]
[327434813,1716072716644,-616.27,0.00029589,2]
[327434814,1716072716653,-999.31,0.00029589,2]
[327434815,1716072716663,-668.19,0.00029589,2]
[327434816,1716072716671,-500.0,0.00029589,2]
[327434817,1716072716681,-2612.48,0.00029589,2]
[327434818,1716072716690,-948.02,0.00029589,2]
[327434819,1716072716700,-500.0,0.00029589,2]
[327434820,1716072716709,-969.95,0.00029589,2]
[327434821,1716072716719,-874.06,0.00029589,2]
[327434822,1716072716728,-515.87,0.00029589,2]
[327434823,1716072716737,-1449.83,0.00029589,2]
[327434824,1716072716747,-897.1,0.00029589,2]
[327434825,1716072716756,-157.051907,0.00029748,24]
[327434826,1716072716766,-15570.07806602,0.0002977,2]
[327434827,1716072716775,-692.8,0.00029796,7]
[327434828,1716072716785,-840.96,0.00029836,2]
[327434829,1716072716794,-150.0,0.00029836,2]
[327434830,1716072716803,-76859.9204388,0.00029843,2]
[327434831,1716072716813,-254.0301809,0.00029843,2]
[327434832,1716072716822,-3533.8193354,0.00029843,2]
[327434833,1716072716831,-4520.8541825,0.00029843,2]
[327434834,1716072716842,-151.0,0.00029843,7]
[327434835,1716072716851,-167.162455,0.00029843,7]
[327434836,1716072716860,-500.0,0.00029863,2]
[327434837,1716072716869,-854.48,0.00029863,2]
[327434838,1716072716878,-722.84,0.00029863,2]
[327434839,1716072716887,-500.0,0.00029863,2]
[327434840,1716072716897,-500.0,0.00029863,2]
[327434841,1716072716906,-749.24,0.00029863,2]
[327434842,1716072716915,-550.07,0.00029863,2]
[327434843,1716072716924,-763.94,0.00029863,2]
[327434844,1716072716934,-500.0,0.00029863,2]
[327434845,1716072716943,-500.0,0.00029863,2]
[327434846,1716072716952,-931.54,0.00029863,2]
[327434847,1716072716961,-1254.54,0.00029863,2]
[327434848,1716072716971,-500.0,0.00029863,2]
[327434849,1716072716981,-545.32,0.00029863,2]
[327434850,1716072716990,-500.0,0.00029863,2]
[327434851,1716072716999,-500.0,0.00029863,2]
[327434852,1716072717009,-500.0,0.00029863,2]
[327434853,1716072717018,-964.74,0.00029863,2]
[327434854,1716072717027,-1304.69,0.00029863,2]
[327434855,1716072717036,-500.0,0.00029863,2]
[327434856,1716072717046,-1394.33,0.00029863,2]
[327434857,1716072717056,-500.0,0.00029863,2]
[327434858,1716072717065,-500.0,0.00029863,2]
[327434859,1716072717075,-1176.76,0.00029863,2]
[327434860,1716072717084,-500.0,0.00029863,2]
[327434861,1716072717093,-500.0,0.00029863,2]
[327434862,1716072717103,-500.0,0.00029863,2]
[327434863,1716072717113,-500.0,0.00029863,2]
[327434864,1716072717122,-572.05,0.00029863,2]
[327434865,1716072717131,-500.0,0.00029863,2]
[327434866,1716072717140,-1239.33,0.00029863,2]
[327434867,1716072717151,-661.91,0.00029863,2]
[327434868,1716072717162,-500.0,0.00029863,2]
[327434869,1716072717171,-500.0,0.00029863,2]
[327434870,1716072717180,-500.0,0.00029863,2]
[327434871,1716072717190,-500.0,0.00029863,2]
[327434872,1716072717199,-680.23,0.00029863,2]
[327434873,1716072717208,-500.0,0.00029863,2]
[327434874,1716072717217,-1000.47,0.00029863,2]
[327434875,1716072717227,-605.84,0.00029863,2]
[327434876,1716072717238,-790.21,0.00029863,2]
[327434877,1716072717248,-1223.78,0.00029863,2]
[327434878,1716072717259,-765.58,0.00029863,2]
[327434879,1716072717268,-193.53304563,0.00029863,2]
[327434880,1716072717277,-1056.08,0.00029863,2]
[327434881,1716072717287,-534.55,0.00029863,2]
[327434882,1716072717296,-678.81,0.00029863,2]
[327434883,1716072717305,-812.38,0.00029863,2]
[327434884,1716072717314,-582.36,0.00029863,2]
[327434885,1716072717324,-1653.59,0.00029863,2]
[327434886,1716072717334,-1175.58,0.00029863,2]
[327434887,1716072717345,-151.0,0.00029863,7]
[327434888,1716072717355,-1017.72,0.00029863,2]
[327434889,1716072717366,-1143.15,0.00029863,2]
[327434890,1716072717375,-831.82,0.00029863,2]
[327434891,1716072717383,-151.0,0.00029863,7]
[327434892,1716072717393,-802.37,0.00029863,2]
[327434893,1716072717402,-800.26,0.00029863,2]
[327434894,1716072717412,-500.0,0.00029863,2]
[327434895,1716072717423,-1012.59,0.00029863,2]
[327434896,1716072717435,-726.12,0.00029863,2]
[327434897,1716072717445,-1028.52,0.00029863,2]
[327434898,1716072717455,-708.72,0.00029863,2]
[327434899,1716072717466,-984.97,0.00029863,2]
[327434900,1716072717475,-825.63,0.00029863,2]
[327434901,1716072717484,-500.0,0.00029863,2]
[327434902,1716072717493,-500.0,0.00029863,2]
[327434903,1716072717505,-500.0,0.00029863,2]
[327434904,1716072717514,-1274.28,0.00029863,2]
[327434905,1716072717524,-551.19,0.00029863,2]
[327434906,1716072717533,-500.0,0.00029863,2]
[327434907,1716072717544,-706.32,0.00029863,2]
[327434908,1716072717554,-500.0,0.00029863,2]
[327434909,1716072717563,-806.78,0.00029863,2]
[327434910,1716072717573,-1763.56,0.00029863,2]
[327434911,1716072717582,-756.43,0.00029863,2]
[327434912,1716072717592,-812.94,0.00029863,2]
[327434913,1716072717601,-500.0,0.00029863,2]
[327434914,1716072717610,-500.0,0.00029863,2]
[327434915,1716072717620,-500.0,0.00029863,2]
[327434916,1716072717629,-500.0,0.00029863,2]
[327434917,1716072717638,-500.0,0.00029863,2]
[327434918,1716072717648,-1640.62,0.00029863,2]
[327434919,1716072717658,-919.67,0.00029863,2]
[327434920,1716072717668,-994.59,0.00029863,2]
[327434921,1716072717678,-508.72,0.00029863,2]
[327434922,1716072717687,-500.0,0.00029863,2]
[327434923,1716072717696,-1278.05,0.00029863,2]
[327434924,1716072717706,-500.0,0.00029863,2]
[327434925,1716072717715,-500.0,0.00029863,2]
[327434926,1716072717724,-538.29,0.00029863,2]
[327434927,1716072717734,-500.0,0.00029863,2]
[327434928,1716072717743,-878.16,0.00029863,2]
[327434929,1716072717752,-500.0,0.00029863,2]
[327434930,1716072717762,-1193.14,0.00029863,2]
[327434931,1716072717771,-500.0,0.00029863,2]
[327434932,1716072717780,-511.86,0.00029863,2]
[327434933,1716072717789,-629.56,0.00029863,2]
[327434934,1716072717798,-701.29,0.00029863,2]
[327434935,1716072717807,-500.0,0.00029863,2]
[327434936,1716072717817,-1465.44,0.00029863,2]
[327434937,1716072717827,-500.0,0.00029863,2]
[327434938,1716072717836,-500.0,0.00029863,2]
[327434939,1716072717845,-737.76,0.00029863,2]
[327434940,1716072717854,-500.0,0.00029863,2]
[327434941,1716072717864,-535.86,0.00029863,2]
[327434942,1716072717873,-545.55,0.00029863,2]
[327434943,1716072717882,-500.0,0.00029863,2]
[327434944,1716072717891,-676.12,0.00029863,2]
[327434945,1716072717901,-664.25,0.00029863,2]
[327434946,1716072717910,-500.0,0.00029863,2]
[327434947,1716072717919,-1116.91,0.00029863,2]
[327434948,1716072717928,-1468.41,0.00029863,2]
[327434949,1716072717938,-500.0,0.00029863,2]
[327434950,1716072717947,-500.0,0.00029863,2]
[327434951,1716072717957,-224.8,0.00029863,2]
[327434952,1716072717967,-500.0,0.00029863,2]
[327434953,1716072717976,-1503.59,0.00029863,2]
[327434954,1716072717986,-151.0,0.00029863,7]
[327434955,1716072717995,-2119.81,0.00029863,2]
[327434956,1716072718005,-608.62,0.00029863,2]
[327434957,1716072718015,-1716.09,0.00029863,2]
[327434958,1716072718025,-500.0,0.00029863,2]
[327434959,1716072718205,-585.6,0.00029863,2]
[327434960,1716072718215,-1723.61,0.00029863,2]
[327434961,1716072718226,-1064.38,0.00029863,2]
[327434962,1716072718236,-673.21,0.00029863,2]
[327434963,1716072718246,-1075.81,0.00029863,2]
[327434964,1716072718256,-500.0,0.00029863,2]
[327434965,1716072718265,-587.92,0.00029863,2]
[327434966,1716072718277,-712.14,0.00029863,2]
[327434967,1716072718288,-1114.27,0.00029863,2]
[327434968,1716072718299,-1220.64,0.00029863,2]
[327434969,1716072718310,-474.16886388,0.00029863,2]
[327434970,1716072718321,-500.0,0.00029863,2]
[327434971,1716072718330,-225.368504,0.00029863,7]
[327434972,1716072718341,-722.05,0.00029863,2]
[327434973,1716072718350,-2267.31,0.00029863,2]
[327434974,1716072718360,-969.15,0.00029863,2]
[327434975,1716072718372,-1458.35,0.00029863,2]
[327434976,1716072718381,-225.36851,0.00029863,7]
[327434977,1716072718390,-632.07,0.00029863,2]
[327434978,1716072718399,-1012.54,0.00029863,2]
[327434979,1716072718408,-1866.92,0.00029863,2]
[327434980,1716072718417,-1018.2,0.00029863,2]
[327434981,1716072718432,-1196.04,0.00029863,2]
[327434982,1716072718441,-1534.26,0.00029863,2]
[327434983,1716072718450,-500.0,0.00029863,2]
[327434984,1716072718459,-1644.74,0.00029863,2]
[327434985,1716072718468,-500.0,0.00029863,2]
[327434986,1716072718478,-500.0,0.00029863,2]
[327434987,1716072718488,-151.0,0.00029863,7]
[327434988,1716072718497,-1425.36,0.00029863,2]
[327434989,1716072718507,-500.0,0.00029863,2]
[327434990,1716072718516,-500.0,0.00029863,2]
[327434991,1716072718525,-1458.37,0.00029863,2]
[327434992,1716072718535,-2166.18,0.00029863,2]
[327434993,1716072718544,-175.735326,0.00029863,7]
[327434994,1716072718554,-1570.99,0.00029863,2]
[327434995,1716072718564,-175.735331,0.00029863,7]
[327434996,1716072718573,-500.0,0.00029863,2]
[327434997,1716072718582,-1462.35,0.00029863,2]
[327434998,1716072718591,-1200.37,0.00029863,2]
[327434999,1716072718600,-500.0,0.00029863,2]
[327435000,1716072718609,-1482.14,0.00029863,2]
[327435001,1716072718619,-500.0,0.00029863,2]
[327435002,1716072718629,-589.95,0.00029863,2]
[327435003,1716072718638,-1181.38,0.00029863,2]
[327435004,1716072718648,-1203.86,0.00029863,2]
[327435005,1716072718657,-1171.23,0.00029863,2]
[327435006,1716072718667,-846.87,0.00029863,2]
[327435007,1716072718676,-500.0,0.00029863,2]
[327435008,1716072718685,-500.0,0.00029863,2]
[327435009,1716072718694,-500.0,0.00029863,2]
[327435010,1716072718704,-1159.4,0.00029863,2]
[327435011,1716072718713,-542.76,0.00029863,2]
[327435012,1716072718722,-654.46,0.00029863,2]
[327435013,1716072718731,-500.0,0.00029863,2]
[327435014,1716072718741,-500.0,0.00029863,2]
[327435015,1716072718750,-500.0,0.00029863,2]
[327435016,1716072718759,-1243.73,0.00029863,2]
[327435017,1716072718769,-500.0,0.00029863,2]
[327435018,1716072718778,-2427.59,0.00029863,2]
[327435019,1716072718787,-239.67017,0.00029863,7]
[327435020,1716072718797,-500.0,0.00029863,2]
[327435021,1716072718806,-239.67018,0.00029863,7]
[327435022,1716072718816,-1584.94,0.00029863,2]
[327435023,1716072718825,-1265.64,0.00029863,2]
[327435024,1716072718835,-500.0,0.00029863,2]
[327435025,1716072718844,-500.0,0.00029863,2]
[327435026,1716072718854,-500.0,0.00029863,2]
[327435027,1716072718864,-151.0,0.00029863,7]
[327435028,1716072718874,-500.0,0.00029863,2]
[327435029,1716072718883,-500.0,0.00029863,2]
[327435030,1716072718892,-1233.86,0.00029863,2]
[327435031,1716072718902,-500.0,0.00029863,2]
[327435032,1716072718912,-151.0,0.00029863,7]
[327435033,1716072718920,-500.0,0.00029863,2]
[327435034,1716072718930,-1395.57,0.00029863,2]
[327435035,1716072718939,-1132.34,0.00029863,2]
[327435036,1716072718948,-500.0,0.00029863,2]
[327435037,1716072718957,-165.4767121,0.00029863,2]
[327435038,1716072718966,-1430.09,0.00029863,2]
[327435039,1716072718975,-683.06,0.00029863,2]
[327435040,1716072718984,-1055.87,0.00029863,2]
[327435041,1716072718994,-500.0,0.00029863,2]
[327435042,1716072719003,-572.39,0.00029863,2]
[327435043,1716072719013,-1506.92,0.00029863,2]
[327435044,1716072719022,-500.0,0.00029863,2]
[327435045,1716072719032,-505.95,0.00029863,2]
[327435046,1716072719041,-1133.79,0.00029863,2]
[327435047,1716072719051,-573.67,0.00029863,2]
[327435048,1716072719060,-500.0,0.00029863,2]
[327435049,1716072719070,-1092.05,0.00029863,2]
[327435050,1716072719079,-516.22,0.00029863,2]
[327435051,1716072719089,-500.0,0.00029863,2]
[327435052,1716072719098,-500.0,0.00029863,2]
[327435053,1716072719107,-665.38,0.00029863,2]
[327435054,1716072719117,-522.93,0.00029863,2]
[327435055,1716072719126,-500.0,0.00029863,2]
[327435056,1716072719136,-513.55,0.00029863,2]
[327435057,1716072719145,-500.0,0.00029863,2]
[327435058,1716072719154,-500.0,0.00029863,2]
[327435059,1716072719163,-500.0,0.00029863,2]
[327435060,1716072719173,-612.67,0.00029863,2]
[327435061,1716072719183,-1047.59,0.00029863,2]
[327435062,1716072719192,-797.42,0.00029863,2]
[327435063,1716072719202,-655.38,0.00029863,2]
[327435064,1716072719211,-1816.17,0.00029863,2]
[327435065,1716072719220,-500.0,0.00029863,2]
[327435066,1716072719230,-1274.2,0.00029863,2]
[327435067,1716072719239,-1013.77,0.00029863,2]
[327435068,1716072719249,-651.18,0.00029863,2]
[327435069,1716072719258,-500.0,0.00029863,2]
[327435070,1716072719267,-567.65,0.00029863,2]
[327435071,1716072719276,-521.29824769,0.00029863,2]
[327435072,1716072719286,-1049.26,0.00029863,2]
[327435073,1716072719296,-500.0,0.00029863,2]
[327435074,1716072719305,-500.0,0.00029863,2]
[327435075,1716072719314,-591.93,0.00029863,2]
[327435076,1716072719324,-500.0,0.00029863,2]
[327435077,1716072719333,-216.44,0.00029863,2]
[327435078,1716072719342,-1008.71,0.00029863,2]
[327435079,1716072719351,-500.0,0.00029863,2]
[327435080,1716072719361,-500.0,0.00029863,2]
[327435081,1716072719371,-710.61,0.00029863,2]
[327435082,1716072719380,-500.0,0.00029863,2]
[327435083,1716072719389,-878.79,0.00029863,2]
[327435084,1716072719399,-985.63,0.00029863,2]
[327435085,1716072719409,-537.31,0.00029863,2]
[327435086,1716072719420,-619.31,0.00029863,2]
[327435087,1716072719434,-500.0,0.00029863,2]
[327435088,1716072719443,-1356.52,0.00029863,2]
[327435089,1716072719454,-500.0,0.00029863,2]
[327435090,1716072719463,-2016.27,0.00029863,2]
[327435091,1716072719475,-612.5,0.00029863,2]
[327435092,1716072719485,-528.03,0.00029863,2]
[327435093,1716072719494,-500.0,0.00029863,2]
[327435094,1716072719505,-500.0,0.00029863,2]
[327435095,1716072719515,-996.54,0.00029863,2]
[327435096,1716072719525,-500.0,0.00029863,2]
[327435097,1716072719535,-500.0,0.00029863,2]
[327435098,1716072719545,-519.88,0.00029863,2]
[327435099,1716072719556,-500.0,0.00029863,2]
[327435100,1716072719566,-299.17,0.00029863,2]
[327435101,1716072719576,-553.54,0.00029863,2]
[327435102,1716072719586,-1102.51,0.00029863,2]
[327435103,1716072719597,-500.0,0.00029863,2]
[327435104,1716072719607,-500.0,0.00029863,2]
[327435105,1716072719617,-940.06,0.00029863,2]
[327435106,1716072719626,-500.0,0.00029863,2]
[327435107,1716072719636,-500.0,0.00029863,2]
[327435108,1716072719645,-500.0,0.00029863,2]
[327435109,1716072719656,-500.0,0.00029863,2]
[327435110,1716072719666,-517.32,0.00029863,2]
[327435111,1716072719676,-500.0,0.00029863,2]
[327435112,1716072719685,-740.68,0.00029863,2]
[327435113,1716072719695,-509.85,0.00029863,2]
[327435114,1716072719704,-469.93,0.00029863,2]
[327435115,1716072719714,-660.73,0.00029863,2]